Cogmind - Beta 13 @@@ ROGUE MODE // 2024.04.14 @ 00:35:54 Player: SovietPaperclip Result: Self-destructed Performance ------------- Evolutions (0) 0 Regions Visited (4) 800 Robots Destroyed (4) 20 Value Destroyed (98) 98 Prototype IDs (23) 460 Alien Tech Used (0) 0 Bonus (300) 300 TOTAL SCORE: 1678 Bonus ------- Aligned with FarCom 300 Cogmind --------- Core Integrity 171/250 Matter 249/300 Energy 125/125 System Corruption 0% Temperature Cool (60) Movement Treading (320) Ox2 Location -9/Mines Parts ------- > --- POWER (1) -------- Light Ion Engine > --- PROPULSION (2) --- Light Treads Light Treads > --- UTILITY (2) ------ Huge Storage Unit Hardened Medium Armor Plating > --- WEAPON (2) ------- Light Assault Rifle > --- INVENTORY (25) --- High-capacity Matter Pod (200) Army-in-a-Box (30/30) Light Assault Rifle XL Autogun Array Peak State ------------ > --- POWER ------------ Light Ion Engine > --- PROPULSION ------- Light Treads Light Treads > --- UTILITY ---------- Huge Storage Unit Hardened Medium Armor Plating > --- WEAPON ----------- Light Assault Rifle Light Assault Rifle > --- INVENTORY -------- Army-in-a-Box XL Autogun Array Grenade Launcher [Rating: 18] Favorites ----------- Power Light Ion Engine Engine Light Ion Engine Propulsion Light Treads Treads Light Treads Utility Hardened Medium Armor Plating Storage Small Storage Unit Protection Hardened Medium Armor Plating Weapon Light Assault Rifle Ballistic Gun Light Assault Rifle Launcher Grenade Launcher Build | -11 -10 -10 -10 -9 ------- Run | Yrd Mat Min Exi Min Slots Evolved . | . . . . . Power . | . . . . . Propulsion . | . . . . . Utility . | . . . . . Weapon . | . . . . . Parts Attached 9 | 6 . 1 1 1 Power 1 | 1 . . . . Engine 1 | 1 . . . . Core . | . . . . . Reactor . | . . . . . Propulsion 2 | 2 . . . . Treads 2 | 2 . . . . Leg . | . . . . . Wheel . | . . . . . Hover . | . . . . . Flight . | . . . . . Utility 3 | 1 . 1 1 . Device . | . . . . . Storage 2 | 1 . . 1 . Processor . | . . . . . Hackware . | . . . . . Protection 1 | . . 1 . . Artifact . | . . . . . Weapon 3 | 2 . . . 1 Energy Gun . | . . . . . Energy Cannon . | . . . . . Ballistic Gun 2 | 2 . . . . Ballistic Cannon . | . . . . . Launcher 1 | . . . . 1 Special Weapon . | . . . . . Impact Weapon . | . . . . . Slashing Weapon . | . . . . . Piercing Weapon . | . . . . . Special Melee Weapon . | . . . . . Unidentified Prototypes . | . . . . . Parts Lost 1 | . . . . 1 Power . | . . . . . Propulsion . | . . . . . Utility . | . . . . . Weapon 1 | . . . . 1 Highest Loss Streak 1 | . . . . 1 To Critical Strikes . | . . . . . Average Slot Usage (%) 97 | . 85 97 100 100 Engine 14 | . 14 14 14 14 Treads 28 | . 28 28 28 28 Storage 14 | . 14 14 14 14 Protection 11 | . . 11 14 14 Ballistic Gun 27 | . 28 28 28 25 Naked Turns . | . . . . . Heaviest Build 95 | 10 10 18 93 95 Greatest Support 40 | 40 40 40 40 40 Greatest Overweight (x) 2 | . . . 2 2 Average Overweight (x) . | . . . 1 2 Largest Inventory Capacity 25 | 8 8 8 25 25 Average Capacity 14 | 6 8 8 19 25 Most Carried 12 | 4 1 3 12 12 Average Carried 5 | . . 1 8 12 Final Capacity 25 | 8 8 8 25 25 Final Carried 12 | . 1 2 12 12 Class Distribution -------------------- 100% | Mutant Dominant Class ---------------- Mutant | -10/Materials Mutant | -10/Mines Mutant | -10/Exiles Mutant | -9/Mines Resources | -11 -10 -10 -10 -9 ----------- Run | Yrd Mat Min Exi Min Matter Collected 341 | 237 43 22 28 11 Remotely . | . . . . . Salvage Created 140 | . 92 13 . 35 Parts 9 | . 6 1 . 2 Haulers Intercepted . | . . . . . Recyclers Shooed . | . . . . . Parts Field Recycled . | . . . . . Retrieved Matter . | . . . . . Parts Self-Destructed . | . . . . . Prevented . | . . . . . Kills | -11 -10 -10 -10 -9 ------- Run | Yrd Mat Min Exi Min Combat Hostiles Destroyed 6 | . 2 1 . 3 Guns 3 | . 2 1 . . AOE 3 | . . . . 3 Classes Destroyed 4 | . 1 1 . 2 Tunneler 1 | . . . . 1 Swarmer 1 | . . 1 . . Grunt 2 | . 2 . . . Assembled 3 | . . . . 3 Best Kill Streak 4 | . 2 1 . 4 Combat Bots Only 3 | . 2 1 . 3 Max Kills in Single Turn 2 | . 1 1 . 2 Gunslinging . | . . . . . Exploded 2 | . . . . 2 Melee . | . . . . . Uniques/NPCs Destroyed . | . . . . . Combat | -11 -10 -10 -10 -9 -------- Run | Yrd Mat Min Exi Min Hostile Shots Fired 29 | . 11 7 . 11 Missed 11 | . 5 3 . 3 Damage Taken 356 | . 79 98 . 179 Core 79 | . 32 15 . 32 Absorbed by Shields . | . . . . . Core Remaining (%) 100 | 100 . . . . Volleys Fired 24 | . 10 8 . 6 Largest 2 | . 2 2 . 2 Hottest 50 | . 40 40 . 50 Shots Fired 48 | . 20 16 . 12 Gun 43 | . 20 16 . 7 Cannon . | . . . . . Launcher 5 | . . . . 5 Special . | . . . . . Kinetic 43 | . 20 16 . 7 Thermal . | . . . . . Explosive 5 | . . . . 5 Electromagnetic . | . . . . . Robot Hit Streak 5 | . 5 3 . 2 Robot Miss Streak 4 | . 2 2 . 4 Penetration Max . | . . . . . Secondary Targets . | . . . . . Shots Hit Robots 26 | . 12 9 . 5 Core Hits 16 | . 7 3 . 6 Critical Kills 1 | . 1 . . . Critical Parts Destroyed . | . . . . . Critical Strikes 1 | . 1 . . . Destroy 1 | . 1 . . . Melee Attacks . | . . . . . Impact . | . . . . . Slashing . | . . . . . Piercing . | . . . . . Sneak Attacks . | . . . . . Combat Hostiles . | . . . . . Follow-up Attacks . | . . . . . Damage Inflicted 424 | . 89 75 . 260 Guns 194 | . 89 75 . 30 Cannons . | . . . . . Explosions 230 | . . . . 230 Melee . | . . . . . Ramming . | . . . . . Kinetic 194 | . 89 75 . 30 Thermal . | . . . . . Explosive 230 | . . . . 230 Electromagnetic . | . . . . . Impact . | . . . . . Slashing . | . . . . . Piercing . | . . . . . Highest Corruption . | . . . . . Average Corruption . | . . . . . Corruption Purged . | . . . . . Corruption Blocked . | . . . . . Overload Shots . | . . . . . Overflow Damage 3 | . . . . 3 Projectiles . | . . . . . Explosions 3 | . . . . 3 Melee . | . . . . . Knockbacks . | . . . . . Impact . | . . . . . Kinetic . | . . . . . Secondary . | . . . . . Self-Inflicted Damage 60 | . . . . 60 Shots 3 | . . . . 3 Rammed . | . . . . . Targets Rammed . | . . . . . Kicked . | . . . . . Crushed . | . . . . . Highest Temperature 40 | . 18 20 . 40 Average Temperature 13 | . 9 10 . 19 Received Heat Transfer 68 | . 48 . . 20 Siege Activations . | . . . . . Robots Corrupted . | . . . . . Combat Hostiles . | . . . . . Parts Fried . | . . . . . Impact Corruptions . | . . . . . Robots Melted . | . . . . . Combat Hostiles . | . . . . . Parts Melted . | . . . . . Heat Transferred . | . . . . . Parts Sabotaged . | . . . . . Parts Stolen . | . . . . . Parts Stripped . | . . . . . Power Chain Reactions . | . . . . . Alert | -11 -10 -10 -10 -9 ------- Run | Yrd Mat Min Exi Min Peak Influence 65 | . 50 65 . 50 Initial . | . . . . . Average 21 | . 6 38 . 3 Maximum Alert Level . | . . . . . Low Security (%) 100 | 100 100 100 . 100 Level 1 . | . . . . . Level 2 . | . . . . . Level 3 . | . . . . . Level 4 . | . . . . . Level 5 . | . . . . . High Security . | . . . . . Max Security . | . . . . . Squads Dispatched . | . . . . . Investigation . | . . . . . Extermination . | . . . . . Reinforcement . | . . . . . Assault . | . . . . . Garrison . | . . . . . Intercept . | . . . . . Searches Triggered . | . . . . . Construction Impeded . | . . . . . Haulers Reinforced . | . . . . . Active Scanning Responses . | . . . . . Cargo Convoy Interrupts . | . . . . . Stealth | -11 -10 -10 -10 -9 --------- Run | Yrd Mat Min Exi Min Distress Signals . | . . . . . Communications Jammed . | . . . . . Distress Signals . | . . . . . Times Spotted 16 | . 4 2 . 10 Peak Tracking Total 9 | . 2 3 . 9 Tactical Retreats 1 | . . 1 . . Traps | -11 -10 -10 -10 -9 ------- Run | Yrd Mat Min Exi Min Traps Triggered 1 | . . 1 . . Indirectly . | . . . . . Trap Hack Attempts . | . . . . . Triggered . | . . . . . Disarmed . | . . . . . Reprogrammed . | . . . . . Reused . | . . . . . Traps Extracted . | . . . . . Installed . | . . . . . Triggered . | . . . . . Machines | -11 -10 -10 -10 -9 ---------- Run | Yrd Mat Min Exi Min Machines Disabled . | . . . . . Max in Single Turn . | . . . . . Machines Repaired . | . . . . . Machines Dismantled . | . . . . . Machines Sabotaged . | . . . . . Overloaded Fab Kills . | . . . . . Hacking | -11 -10 -10 -10 -9 --------- Run | Yrd Mat Min Exi Min Machines Accessed 5 | . 2 1 2 . Terminals 2 | . 2 . . . Fabricators . | . . . . . Repair Stations . | . . . . . Recycling Units . | . . . . . Scanalyzers . | . . . . . Garrison Access . | . . . . . Total Hacks 7 | . 4 1 2 . Successful 4 | . 1 1 2 . Failed 3 | . 3 . . . Catastrophic 1 | . 1 . . . Database Lockouts . | . . . . . Manual 1 | . . . 1 . Terminals 4 | . 4 . . . Fabricators . | . . . . . Repair Stations . | . . . . . Recycling Units . | . . . . . Scanalyzers . | . . . . . Garrison Access . | . . . . . Terminal Hacks 4 | . 1 1 2 . Record 1 | . . . 1 . Open Door 1 | . . 1 . . Unreport Threat 1 | . 1 . . . Derelict Proto ID Bank 1 | . . . 1 . Fabricator Hacks . | . . . . . Repair Station Hacks . | . . . . . Recycling Unit Hacks . | . . . . . Scanalyzer . | . . . . . Garrison Access Hacks . | . . . . . Unauthorized Hacks . | . . . . . Terminals . | . . . . . Fabricators . | . . . . . Repair Stations . | . . . . . Recycling Units . | . . . . . Scanalyzers . | . . . . . Garrison Access . | . . . . . Data Cores Recovered . | . . . . . Used . | . . . . . Hacking Detections 1 | . 1 . . . Full Trace Events 1 | . 1 . . . Feedback Events . | . . . . . Feedback Blocked . | . . . . . Robot Schematics Acquired . | . . . . . Robots Built . | . . . . . Authchips . | . . . . . Time . | . . . . . Total Robot Build Rating . | . . . . . Part Schematics Acquired . | . . . . . Parts Built . | . . . . . Authchips . | . . . . . Time . | . . . . . Total Part Build Rating . | . . . . . Parts Repaired . | . . . . . Time . | . . . . . Parts Recycled . | . . . . . Recycled Matter . | . . . . . Retrieved Matter . | . . . . . Retrieved Components . | . . . . . Parts Scanalyzed . | . . . . . Part Schematics Acquired . | . . . . . Parts Damaged . | . . . . . Bothacking | -11 -10 -10 -10 -9 ------------ Run | Yrd Mat Min Exi Min Used RIF Installer . | . . . . . Robots Hacked . | . . . . . Non-combat . | . . . . . Combat . | . . . . . Robot Hacks Applied . | . . . . . Relay Couplers Released . | . . . . . Fabnet Peak Effective % . | . . . . . Robots Rewired . | . . . . . Allies Hacked . | . . . . . Hacks Repelled . | . . . . . Allies | -11 -10 -10 -10 -9 -------- Run | Yrd Mat Min Exi Min Total Allies . | . . . . . Largest Group . | . . . . . Highest-Rated Group . | . . . . . Highest-Rated Ally . | . . . . . Total Orders . | . . . . . Ally Attacks . | . . . . . Total Damage . | . . . . . Kills . | . . . . . Allies Corrupted . | . . . . . Allies Melted . | . . . . . Intel | -11 -10 -10 -10 -9 ------- Run | Yrd Mat Min Exi Min Robot Analysis Total . | . . . . . Derelict Logs Recovered 2 | . . 2 . . Drone Launches . | . . . . . Drone Recoveries . | . . . . . Exploration | -11 -10 -10 -10 -9 ------------- Run | Yrd Mat Min Exi Min Turns Passed 1404 | 72 160 428 569 175 Spaces Moved 664 | 44 84 251 236 49 Core 8 | 8 . . . . Treads 656 | 36 84 251 236 49 Legs . | . . . . . Wheels . | . . . . . Hover . | . . . . . Flight . | . . . . . Fastest Speed 50 | 50 160 160 160 320 Average Speed 198 | 140 160 160 240 320 Slowest Speed 320 | 160 160 160 320 320 Overloaded Moves . | . . . . . Propulsion Burnouts . | . . . . . Robots Hopped . | . . . . . Cave-ins Triggered . | . . . . . Exploration Rate (%) 33 | 3 21 57 59 25 Regions Visited 4 Branch Regions 3 Pre-discovered Areas 2 | . . 1 1 . Known Exits Taken . | . . . . . Unknown Exits Taken 4 | 1 1 1 1 . Scrap Searched 2 | . . 1 . 1 Spaces Dug . | . . . . . Terrain Destroyed 41 | . . . . 41 Melee . | . . . . . Projectile . | . . . . . AOE 41 | . . . . 41 Terrain Rammed . | . . . . . Walls Destroyed . | . . . . . Machines Disabled . | . . . . . Actions | -11 -10 -10 -10 -9 --------- Run | Yrd Mat Min Exi Min Total 710 | 55 94 265 240 56 Wait 4 | . . 4 . . Move 660 | 43 83 250 235 49 Hop . | . . . . . Pick Up 12 | 6 1 2 3 . Fast Attach . | . . . . . Attach 7 | 6 . 1 . . Detach . | . . . . . Swap 2 | . . . 1 1 Drop 1 | . . . 1 . Fire 24 | . 10 8 . 6 Melee . | . . . . . Ram . | . . . . . Kick . | . . . . . Crush . | . . . . . Escape Stasis . | . . . . . Rewire . | . . . . . Trap . | . . . . . Miscellaneous . | . . . . . Route ------- -11/Scrapyard -10/Materials (discovered 2 exits: *Min x2) -10/Mines (discovered 2 exits: [*Mat] / *Exi) -10/Exiles -9/Mines History --------- Turn | Location | Event 7 | -11/Scrapyard | Discovered new exit (range 15) 73 | -11/Scrapyard | Entered Materials 172 | -10/Materials | Discovered new exit (range 12) 230 | -10/Materials | Discovered new exit (range 15) 233 | -10/Materials | Entered Mines 288 | -10/Mines | Met a Derelict who couldn't figure out how to use a Trap Extractor 322 | -10/Mines | Build established: Mutant 484 | -10/Mines | Discovered new exit (range 2) 485 | -10/Mines | Learned location of Storage (-9) 514 | -10/Mines | Learned Materials machine intel 516 | -10/Mines | Learned location of 1 exit from Materials 655 | -10/Mines | Deemed a non-threat by the Exiles lab entrance 655 | -10/Mines | Discovered new exit (range 5) 661 | -10/Mines | Entered Exiles 700 | -10/Exiles | Met 8R-AWN 727 | -10/Exiles | Met EX-HEX 773 | -10/Exiles | Met EX-BIN 801 | -10/Exiles | Aligned with FarCom system 802 | -10/Exiles | Given EX-Vault access code 839 | -10/Exiles | Opened EX-Vault 847 | -10/Exiles | Found Army-in-a-Box 853 | -10/Exiles | Found XL Autogun Array 921 | -10/Exiles | Warned to stay clear of 0b10 Research branches 1014 | -10/Exiles | Met EX-DEC 1030 | -10/Exiles | Learned location of Zion (-7) 1191 | -10/Exiles | Discovered new exit (range 14) 1230 | -10/Exiles | Stole two prototypes: Army-in-a-Box, XL Autogun Array 1230 | -10/Exiles | Entered Mines 1375 | -9/Mines | Assembled infested the area 1405 | -9/Mines | Self-destructed Last Messages --------------- LOCATION=UNKNOWN GOAL=ESCAPE 01230_ Receiving FarCom transmissions... 01240_ Searching scrap... 01240_ Found Hcp. Storage Unit. 01240_ Found 16 Matter. 01283_ T-07 Excavator is excavating. 01295_ K-01 Serf collects debris. 01371_ T-07 Excavator destroyed. 01374_ Acquired 2 matter. 01375_ ALERT: Infestation in the mines, dispatching Demolisher response squad. 01378_ Acquired 9 matter. 01391_ as-17265 destroyed. 01391_ as-97180 destroyed. 01392_ The unstable cave ceiling collapses. 01394_ as-82332 destroyed. 01398_ The unstable cave ceiling collapses. 01400_ Destroyed Asb. Hover Unit. 01404_ Grenade Launcher destroyed. Map ----- +----------------------------------------------------+ | ?????????????????????????????????????????????????? | | ?????????????????????????????????????????????????? | | ?????????????????????????????????????????????????? | | ?????????????????????????????????????????????????? | | ?????????????????????????????????????????????????? | | ?????????????????????????????????????????????????? | | ?????????????????????????????????????????????????? | | ?????????????????????????????????????????????????? | | ?????????????????????????????????????????????????? | | ?????????????????????????????????????????????????? | | ?????????????????????????#???????????????????????? | | ????????????????????????? ???????????????????????? | | ?????????????????????????a???????????????????????? | | ????????????????????????? ???????????????????????? | | ????????????????????????? ???????????????????????? | | ?????????????????????????u???????????????????????? | | ??????????????????#?????? ???????????????????????? | | ??????????????????# ????# #??????????????????????? | | ??????????????????? ##??# #??????????????????????? | | ???????????????????? #?# #??????????????????????? | | ????????????????????#aa?# #??????????????????????? | | ??????????? ???####a # #??????????????????????? | | ???????????# # a# ##???####??????????????? | | ????????????# #??## ##??????C??????? | | ????????????# #?## ##????????????? | | ????????????# a a a@ ### ##???????????? | | ????????????# !rr #???????????? | | ????????????# # ## ##??????????? | | ????????????# #### ### ###### ##?????????? | | ????????????# ??????#???# #????## #?????????? | | ????????????????????????# #?????# #?????????? | | ????????????????????????#t#?????# ##????????? | | ???????????????????????? #?????# ##???????? | | ????????????????????????###?????# #???????? | | ????????????????????????????????## #???????? | | ?????????????????????????????????## #???????? | | ??????????????????????????????????# ##??????? | | ??????????????????????????????????# ##?????? | | ??????????????????????????????????# ####### | | ??????????????????????????????????## | | ???????????????????????????????????##### #### # | | ???????????????????????????????????????## #??# # | | ????????????????????????????????????????# #### # | | ????????????????????????????????????????# # | | ????????????????????????????????????????######## # | | ??????????????????????????????????????????????## # | | ?????????????????????????????????????????????## # | | ?????????????????????????????????????????????# | | ?????????????????????????????????????????????# | | ?????????????????????????????????????????????# | +----------------------------------------------------+ Best States ------------- Heat Dissipation 25 Energy Generation 10 Energy Capacity 125 Matter Stores 300 Matter Capacity 300 Sight Range 16 Terrain Scan Density 10 Armor Coverage 225 Evasion (%) 50 Recoil Reduction 2 Item Schematics ----------------- None Robot Schematics ------------------ None Fabricated ------------ Nothing Alien Tech Used ----------------- None Achievements -------------- None Challenges ------------ None Game ------ Seed ChainSurveybotBay Manual? 0 Play Time 00:05:58 Cumulative 89.3 hours Start 2024.04.14 @ 00:30:15 End 2024.04.14 @ 00:35:54 Sessions 1 Manual Loads 0 Difficulty Rogue Special Mode None Game No. 109 Rogue 109 Adventurer 0 Explorer 0 Win Type - Total 1 Types 1/0/0/0/0/0/0/0/0 Lore% 42 Gallery% 48 Achievement% 45 Wizard Run 0 Options --------- Layout 1 ASCII 0 Keyboard 0 Movement Mouse Keybinds 0 Fullscreen 2 Font 32/Smallcaps Map View 50x40 Zoom Use 0% Tactical HUD 1 Map Filters NONE Filters NONE Steam 1 RUN: 9d266ac7-dd09-4cea-b501-604980644efd